[Event "December 5 Early 2023"]
[Site "https://www.chess.com"]
[Date "2023.12.05"]
[Round "2"]
[White "Estrada Nieto, Julian"]
[Black "Cardozo Munar, Carlos Eduardo"]
[Result "1/2-1/2"]
[Board "193"]
[TimeControl "180+1"]
[WhiteFideId "5101018"]
[BlackFideId "4409477"]
[WhiteElo "2503"]
[BlackElo "2270"]
[WhiteTeam "ESP"]
[BlackTeam "COL"]
[WhiteClock "0:00:04"]
[BlackClock "0:00:12"]

1. e4 {[%clk 0:03:00]}  e6 {[%clk 0:02:59]} 2. d4 {[%clk 0:03:00]}  d5 {[%clk 0:02:59]} 3. Nd2 {[%clk 0:03:00]}  c5 {[%clk 0:02:59]} 4. exd5 {[%clk 0:02:57]}  Qxd5 {[%clk 0:03:00]} 5. Ngf3 {[%clk 0:02:57]}  cxd4 {[%clk 0:03:00]} 6. Bc4 {[%clk 0:02:57]}  Qd7 {[%clk 0:03:00]} 7. O-O {[%clk 0:02:57]}  Nc6 {[%clk 0:03:00]} 8. Nb3 {[%clk 0:02:58]}  Nf6 {[%clk 0:03:00]} 9. Nbxd4 {[%clk 0:02:58]}  Nxd4 {[%clk 0:03:00]} 10. Qxd4 {[%clk 0:02:59]}  Qxd4 {[%clk 0:03:00]} 11. Nxd4 {[%clk 0:02:59]}  a6 {[%clk 0:03:01]} 12. Be2 {[%clk 0:02:57]}  e5 {[%clk 0:02:54]} 13. Nf3 {[%clk 0:02:55]}  e4 {[%clk 0:02:53]} 14. Ne5 {[%clk 0:02:48]}  Be6 {[%clk 0:02:46]} 15. Be3 {[%clk 0:02:38]}  Bd6 {[%clk 0:02:45]} 16. Nc4 {[%clk 0:02:37]}  Be7 {[%clk 0:02:38]} 17. Rfd1 {[%clk 0:02:32]}  O-O {[%clk 0:02:38]} 18. a4 {[%clk 0:02:26]}  b5 {[%clk 0:02:37]} 19. Nb6 {[%clk 0:02:24]}  Rab8 {[%clk 0:02:31]} 20. axb5 {[%clk 0:02:23]}  axb5 {[%clk 0:02:32]} 21. Ra6 {[%clk 0:01:55]}  b4 {[%clk 0:02:26]} 22. Nc4 {[%clk 0:01:50]}  Rfd8 {[%clk 0:02:24]} 23. Rxd8+ {[%clk 0:01:47]}  Rxd8 {[%clk 0:02:24]} 24. h3 {[%clk 0:01:46]}  h6 {[%clk 0:02:24]} 25. b3 {[%clk 0:01:46]}  Nd5 {[%clk 0:02:20]} 26. Bd2 {[%clk 0:01:41]}  Nc3 {[%clk 0:01:34]} 27. Bxc3 {[%clk 0:01:27]}  bxc3 {[%clk 0:01:35]} 28. Ra1 {[%clk 0:01:17]}  Bf6 {[%clk 0:01:34]} 29. Rd1 {[%clk 0:01:15]}  Ra8 {[%clk 0:01:18]} 30. Ne3 {[%clk 0:01:10]}  Ra2 {[%clk 0:01:15]} 31. Rc1 {[%clk 0:01:06]}  Bxb3 {[%clk 0:01:12]} 32. Bg4 {[%clk 0:00:53]}  Ba4 {[%clk 0:01:03]} 33. Bf5 {[%clk 0:00:50]}  Bc6 {[%clk 0:01:00]} 34. Ng4 {[%clk 0:00:42]}  Bg5 {[%clk 0:00:58]} 35. Ne3 {[%clk 0:00:43]}  g6 {[%clk 0:00:55]} 36. Bg4 {[%clk 0:00:42]}  Ba4 {[%clk 0:00:55]} 37. Bd1 {[%clk 0:00:40]}  f5 {[%clk 0:00:47]} 38. g3 {[%clk 0:00:37]}  Kg7 {[%clk 0:00:46]} 39. Kf1 {[%clk 0:00:37]}  h5 {[%clk 0:00:45]} 40. h4 {[%clk 0:00:36]}  Bh6 {[%clk 0:00:45]} 41. Ke1 {[%clk 0:00:37]}  Kf6 {[%clk 0:00:45]} 42. Nd5+ {[%clk 0:00:34]}  Ke5 {[%clk 0:00:41]} 43. Nxc3 {[%clk 0:00:35]}  Bd2+ {[%clk 0:00:35]} 44. Kxd2 {[%clk 0:00:34]}  Ra3 {[%clk 0:00:32]} 45. Nxa4 {[%clk 0:00:34]}  Rxa4 {[%clk 0:00:33]} 46. Rb1 {[%clk 0:00:32]}  Ra5 {[%clk 0:00:31]} 47. Rb8 {[%clk 0:00:31]}  f4 {[%clk 0:00:31]} 48. Re8+ {[%clk 0:00:30]}  Kd4 {[%clk 0:00:31]} 49. gxf4 {[%clk 0:00:29]}  Rf5 {[%clk 0:00:31]} 50. Rd8+ {[%clk 0:00:24]}  Kc5 {[%clk 0:00:31]} 51. Rg8 {[%clk 0:00:22]}  Rxf4 {[%clk 0:00:31]} 52. Rxg6 {[%clk 0:00:20]}  Rxf2+ {[%clk 0:00:30]} 53. Ke3 {[%clk 0:00:18]}  Rh2 {[%clk 0:00:31]} 54. Bxh5 {[%clk 0:00:16]}  Rxh4 {[%clk 0:00:27]} 55. Be2 {[%clk 0:00:15]}  Kb4 {[%clk 0:00:27]} 56. Re6 {[%clk 0:00:13]}  Kc3 {[%clk 0:00:27]} 57. Rc6+ {[%clk 0:00:12]}  Kb4 {[%clk 0:00:26]} 58. Rc8 {[%clk 0:00:13]}  Ka3 {[%clk 0:00:20]} 59. c4 {[%clk 0:00:13]}  Kb4 {[%clk 0:00:20]} 60. c5 {[%clk 0:00:12]}  Ka5 {[%clk 0:00:20]} 61. c6 {[%clk 0:00:11]}  Kb6 {[%clk 0:00:20]} 62. Kd4 {[%clk 0:00:10]}  Rh6 {[%clk 0:00:20]} 63. c7 {[%clk 0:00:07]}  Rc6 {[%clk 0:00:20]} 64. Kxe4 {[%clk 0:00:06]}  Rxc7 {[%clk 0:00:19]} 65. Rb8+ {[%clk 0:00:06]}  Kc5 {[%clk 0:00:19]} 66. Rb3 {[%clk 0:00:06]}  Kd6 {[%clk 0:00:19]} 67. Kd3 {[%clk 0:00:07]}  Rc5 {[%clk 0:00:19]} 68. Bf3 {[%clk 0:00:07]}  Rf5 {[%clk 0:00:19]} 69. Ke3 {[%clk 0:00:07]}  Re5+ {[%clk 0:00:19]} 70. Kf4 {[%clk 0:00:06]}  Re1 {[%clk 0:00:18]} 71. Rd3+ {[%clk 0:00:06]}  Kc5 {[%clk 0:00:18]} 72. Be4 {[%clk 0:00:06]}  Rf1+ {[%clk 0:00:18]} 73. Ke5 {[%clk 0:00:06]}  Re1 {[%clk 0:00:18]} 74. Rc3+ {[%clk 0:00:07]}  Kb4 {[%clk 0:00:18]} 75. Rc7 {[%clk 0:00:07]}  Re2 {[%clk 0:00:18]} 76. Kd4 {[%clk 0:00:07]}  Rh2 {[%clk 0:00:17]} 77. Rb7+ {[%clk 0:00:06]}  Ka5 {[%clk 0:00:18]} 78. Bd5 {[%clk 0:00:06]}  Rd2+ {[%clk 0:00:17]} 79. Kc5 {[%clk 0:00:06]}  Ka6 {[%clk 0:00:18]} 80. Rb1 {[%clk 0:00:05]}  Ka7 {[%clk 0:00:17]} 81. Bc4 {[%clk 0:00:05]}  Rd8 {[%clk 0:00:16]} 82. Bd5 {[%clk 0:00:05]}  Rh8 {[%clk 0:00:16]} 83. Rb2 {[%clk 0:00:04]}  Rh5 {[%clk 0:00:16]} 84. Rb4 {[%clk 0:00:02]}  Rg5 {[%clk 0:00:16]} 85. Kd6 {[%clk 0:00:02]}  Rg6+ {[%clk 0:00:15]} 86. Be6 {[%clk 0:00:03]}  Rh6 {[%clk 0:00:16]} 87. Kd7 {[%clk 0:00:02]}  Ka6 {[%clk 0:00:16]} 88. Kd6 {[%clk 0:00:03]}  Ka5 {[%clk 0:00:16]} 89. Rb1 {[%clk 0:00:03]}  Rg6 {[%clk 0:00:17]} 90. Ke5 {[%clk 0:00:04]}  Rg5+ {[%clk 0:00:17]} 91. Kd6 {[%clk 0:00:03]}  Rg6 {[%clk 0:00:17]} 92. Kd5 {[%clk 0:00:03]}  Rg5+ {[%clk 0:00:17]} 93. Ke4 {[%clk 0:00:03]}  Rh5 {[%clk 0:00:17]} 94. Bc4 {[%clk 0:00:03]}  Rc5 {[%clk 0:00:17]} 95. Kd4 {[%clk 0:00:04]}  Rh5 {[%clk 0:00:18]} 96. Kc3 {[%clk 0:00:04]}  Rh3+ {[%clk 0:00:18]} 97. Bd3 {[%clk 0:00:04]}  Ka4 {[%clk 0:00:17]} 98. Kd4 {[%clk 0:00:04]}  Ka5 {[%clk 0:00:17]} 99. Be4 {[%clk 0:00:05]}  Ka4 {[%clk 0:00:17]} 100. Kd5 {[%clk 0:00:02]}  Ka5 {[%clk 0:00:17]} 101. Kd4 {[%clk 0:00:03]}  Rh4 {[%clk 0:00:17]} 102. Ke5 {[%clk 0:00:04]}  Ka4 {[%clk 0:00:17]} 103. Bd5 {[%clk 0:00:04]}  Ka5 {[%clk 0:00:17]} 104. Kd6 {[%clk 0:00:05]}  Ka4 {[%clk 0:00:17]} 105. Kc5 {[%clk 0:00:05]}  Ka3 {[%clk 0:00:17]} 106. Ra1+ {[%clk 0:00:05]}  Kb2 {[%clk 0:00:17]} 107. Ra2+ {[%clk 0:00:05]}  Kc3 {[%clk 0:00:15]} 108. Ra3+ {[%clk 0:00:05]}  Kb2 {[%clk 0:00:15]} 109. Rb3+ {[%clk 0:00:05]}  Kc2 {[%clk 0:00:15]} 110. Rg3 {[%clk 0:00:05]}  Rh5 {[%clk 0:00:13]} 111. Kd4 {[%clk 0:00:05]}  Rh8 {[%clk 0:00:13]} 112. Be4+ {[%clk 0:00:05]}  Kb2 {[%clk 0:00:13]} 113. Bd5 {[%clk 0:00:04]}  Rh4+ {[%clk 0:00:13]} 114. Kc5 {[%clk 0:00:04]}  Rh5 {[%clk 0:00:12]} 1/2-1/2

[Event "December 5 Early 2023"]
[Site "https://www.chess.com"]
[Date "2023.12.05"]
[Round "2"]
[White "Vifleemskaia, Svetlana"]
[Black "Bold, Andre"]
[Result "1/2-1/2"]
[Board "196"]
[TimeControl "180+1"]
[WhiteFideId "4129490"]
[BlackFideId "16208471"]
[WhiteElo "2255"]
[BlackElo "2500"]
[WhiteTeam "RUS"]
[BlackTeam "GER"]
[WhiteClock "0:00:07"]
[BlackClock "0:00:42"]

1. d4 {[%clk 0:02:55]}  d5 {[%clk 0:02:59]} 2. c4 {[%clk 0:02:56]}  c6 {[%clk 0:02:59]} 3. cxd5 {[%clk 0:02:56]}  cxd5 {[%clk 0:03:00]} 4. Bf4 {[%clk 0:02:56]}  Nf6 {[%clk 0:03:00]} 5. Nc3 {[%clk 0:02:56]}  Nc6 {[%clk 0:03:00]} 6. e3 {[%clk 0:02:56]}  Bf5 {[%clk 0:02:59]} 7. Qb3 {[%clk 0:02:56]}  Na5 {[%clk 0:02:59]} 8. Qa4+ {[%clk 0:02:55]}  Bd7 {[%clk 0:02:58]} 9. Qc2 {[%clk 0:02:55]}  e6 {[%clk 0:02:54]} 10. Bd3 {[%clk 0:02:51]}  b5 {[%clk 0:02:54]} 11. Nxb5 {[%clk 0:02:37]}  Bb4+ {[%clk 0:02:30]} 12. Nc3 {[%clk 0:02:25]}  O-O {[%clk 0:02:27]} 13. Ne2 {[%clk 0:02:21]}  h6 {[%clk 0:02:25]} 14. O-O {[%clk 0:02:16]}  Rc8 {[%clk 0:02:25]} 15. a3 {[%clk 0:02:12]}  Bxc3 {[%clk 0:02:21]} 16. Nxc3 {[%clk 0:02:09]}  Nc4 {[%clk 0:02:21]} 17. Bxc4 {[%clk 0:01:59]}  Rxc4 {[%clk 0:02:21]} 18. Qd3 {[%clk 0:01:58]}  Rc6 {[%clk 0:02:12]} 19. b4 {[%clk 0:01:54]}  Qc8 {[%clk 0:02:05]} 20. Rfc1 {[%clk 0:01:50]}  Qb7 {[%clk 0:02:00]} 21. Ne2 {[%clk 0:01:34]}  Rxc1+ {[%clk 0:01:56]} 22. Rxc1 {[%clk 0:01:33]}  Bb5 {[%clk 0:01:55]} 23. Qc2 {[%clk 0:01:31]}  Bc4 {[%clk 0:01:51]} 24. Bd6 {[%clk 0:01:27]}  Rc8 {[%clk 0:01:50]} 25. Bc5 {[%clk 0:01:27]}  a5 {[%clk 0:01:43]} 26. Nc3 {[%clk 0:01:19]}  axb4 {[%clk 0:01:42]} 27. axb4 {[%clk 0:01:18]}  Nd7 {[%clk 0:01:39]} 28. h3 {[%clk 0:01:02]}  Ra8 {[%clk 0:01:39]} 29. Qb2 {[%clk 0:00:49]}  e5 {[%clk 0:01:21]} 30. Ra1 {[%clk 0:00:19]}  Rxa1+ {[%clk 0:01:17]} 31. Qxa1 {[%clk 0:00:19]}  exd4 {[%clk 0:01:15]} 32. exd4 {[%clk 0:00:15]}  f6 {[%clk 0:00:52]} 33. Qa5 {[%clk 0:00:14]}  Kf7 {[%clk 0:00:44]} 34. Qd8 {[%clk 0:00:13]}  Nxc5 {[%clk 0:00:45]} 35. bxc5 {[%clk 0:00:12]}  Qb3 {[%clk 0:00:43]} 36. Qd7+ {[%clk 0:00:07]}  Kg6 {[%clk 0:00:42]} 37. Qg4+ {[%clk 0:00:07]}  Kh7 {[%clk 0:00:42]} 38. Qf5+ {[%clk 0:00:07]}  Kg8 {[%clk 0:00:41]} 39. Qc8+ {[%clk 0:00:06]}  Kf7 {[%clk 0:00:41]} 40. Qd7+ {[%clk 0:00:06]}  Kg6 {[%clk 0:00:42]} 41. Qg4+ {[%clk 0:00:06]}  Kh7 {[%clk 0:00:42]} 42. Qf5+ {[%clk 0:00:07]}  Kh8 {[%clk 0:00:41]} 43. Qc8+ {[%clk 0:00:06]}  Kh7 {[%clk 0:00:42]} 44. Qf5+ {[%clk 0:00:07]} 1/2-1/2

[Event "December 5 Early 2023"]
[Site "https://www.chess.com"]
[Date "2023.12.05"]
[Round "2"]
[White "Ivanova, Karina"]
[Black "Muetsch, Annmarie"]
[Result "1-0"]
[Board "197"]
[TimeControl "180+1"]
[WhiteFideId "24139750"]
[BlackFideId "12971367"]
[WhiteElo "2253"]
[BlackElo "2500"]
[WhiteTeam "RUS"]
[BlackTeam "GER"]
[WhiteClock "0:00:13"]
[BlackClock "0:00:00"]

1. Nf3 {[%clk 0:02:59]}  Nf6 {[%clk 0:02:56]} 2. g3 {[%clk 0:02:57]}  e6 {[%clk 0:02:51]} 3. Bg2 {[%clk 0:02:52]}  d5 {[%clk 0:02:51]} 4. d4 {[%clk 0:02:52]}  c5 {[%clk 0:02:50]} 5. O-O {[%clk 0:02:48]}  Nc6 {[%clk 0:02:49]} 6. c4 {[%clk 0:02:47]}  Be7 {[%clk 0:02:46]} 7. cxd5 {[%clk 0:02:44]}  Nxd5 {[%clk 0:02:44]} 8. Nc3 {[%clk 0:02:43]}  O-O {[%clk 0:02:42]} 9. e4 {[%clk 0:02:31]}  Ndb4 {[%clk 0:02:24]} 10. dxc5 {[%clk 0:02:29]}  Qxd1 {[%clk 0:02:20]} 11. Rxd1 {[%clk 0:02:29]}  Bxc5 {[%clk 0:02:20]} 12. Bf4 {[%clk 0:02:23]}  Re8 {[%clk 0:01:51]} 13. a3 {[%clk 0:02:18]}  Nc2 {[%clk 0:01:49]} 14. Rac1 {[%clk 0:02:11]}  N2d4 {[%clk 0:01:46]} 15. b4 {[%clk 0:02:06]}  Nxf3+ {[%clk 0:01:42]} 16. Bxf3 {[%clk 0:02:05]}  Bb6 {[%clk 0:01:41]} 17. Nb5 {[%clk 0:01:51]}  e5 {[%clk 0:01:39]} 18. Bd2 {[%clk 0:01:36]}  Be6 {[%clk 0:01:35]} 19. Nd6 {[%clk 0:01:27]}  Nd4 {[%clk 0:01:22]} 20. Kg2 {[%clk 0:01:15]}  Re7 {[%clk 0:01:16]} 21. Be3 {[%clk 0:01:08]}  g6 {[%clk 0:01:00]} 22. Rc3 {[%clk 0:01:00]}  Rd7 {[%clk 0:00:57]} 23. Nc4 {[%clk 0:00:50]}  Nxf3 {[%clk 0:00:30]} 24. Rxd7 {[%clk 0:00:44]}  Ne1+ {[%clk 0:00:20]} 25. Kf1 {[%clk 0:00:43]}  Bxd7 {[%clk 0:00:20]} 26. Kxe1 {[%clk 0:00:43]}  Bxe3 {[%clk 0:00:15]} 27. Nxe3 {[%clk 0:00:37]}  Be6 {[%clk 0:00:15]} 28. Rc7 {[%clk 0:00:31]}  b6 {[%clk 0:00:14]} 29. Nc4 {[%clk 0:00:22]}  Bxc4 {[%clk 0:00:13]} 30. Rxc4 {[%clk 0:00:21]}  Kg7 {[%clk 0:00:13]} 31. Rc7 {[%clk 0:00:21]}  Kf6 {[%clk 0:00:13]} 32. h4 {[%clk 0:00:20]}  Ke6 {[%clk 0:00:13]} 33. Kd2 {[%clk 0:00:20]}  h5 {[%clk 0:00:12]} 34. Kc3 {[%clk 0:00:20]}  a5 {[%clk 0:00:09]} 35. Kc4 {[%clk 0:00:17]}  axb4 {[%clk 0:00:08]} 36. Kxb4 {[%clk 0:00:17]}  f6 {[%clk 0:00:06]} 37. Rc6+ {[%clk 0:00:16]}  Ke7 {[%clk 0:00:06]} 38. Rxb6 {[%clk 0:00:17]}  Rd8 {[%clk 0:00:07]} 39. a4 {[%clk 0:00:15]}  Rd4+ {[%clk 0:00:06]} 40. Kb5 {[%clk 0:00:15]}  Rxe4 {[%clk 0:00:07]} 41. a5 {[%clk 0:00:15]}  Re1 {[%clk 0:00:07]} 42. a6 {[%clk 0:00:15]}  Ra1 {[%clk 0:00:07]} 43. Rb7+ {[%clk 0:00:13]}  Ke6 {[%clk 0:00:07]} 44. a7 {[%clk 0:00:13]}  e4 {[%clk 0:00:07]} 45. Kb6 {[%clk 0:00:13]}  f5 {[%clk 0:00:07]} 46. Rb8 {[%clk 0:00:13]}  Ke5 {[%clk 0:00:06]} 47. a8=Q {[%clk 0:00:13]}  Rxa8 {[%clk 0:00:05]} 48. Rxa8 {[%clk 0:00:13]}  Kd4 {[%clk 0:00:05]} 49. Rg8 {[%clk 0:00:13]}  Kd3 {[%clk 0:00:03]} 50. Rxg6 {[%clk 0:00:13]}  Ke2 {[%clk 0:00:03]} 51. Rf6 {[%clk 0:00:13]}  Kxf2 {[%clk 0:00:04]} 52. Rxf5+ {[%clk 0:00:13]}  Kxg3 {[%clk 0:00:03]} 53. Rxh5 {[%clk 0:00:13]}  Kg4 {[%clk 0:00:02]} 54. Rh8 {[%clk 0:00:13]}  e3 {[%clk 0:00:00]} 55. h5 {[%clk 0:00:13]} 1-0

[Event "December 5 Early 2023"]
[Site "https://www.chess.com"]
[Date "2023.12.05"]
[Round "2"]
[White "Herman, Matthew"]
[Black "De Souza, Cristiano Gomes"]
[Result "0-1"]
[Board "198"]
[TimeControl "180+1"]
[WhiteFideId "2028964"]
[BlackFideId "2151758"]
[WhiteElo "2498"]
[BlackElo "2252"]
[WhiteTeam "USA"]
[BlackTeam "BRA"]
[WhiteClock "0:00:05"]
[BlackClock "0:00:21"]

1. e4 {[%clk 0:03:00]}  c5 {[%clk 0:02:33]} 2. Nf3 {[%clk 0:02:59]}  d6 {[%clk 0:02:30]} 3. d4 {[%clk 0:02:59]}  cxd4 {[%clk 0:02:30]} 4. Nxd4 {[%clk 0:03:00]}  Nf6 {[%clk 0:02:29]} 5. Nc3 {[%clk 0:03:01]}  a6 {[%clk 0:02:28]} 6. Bc4 {[%clk 0:03:01]}  e6 {[%clk 0:02:25]} 7. a3 {[%clk 0:03:01]}  Be7 {[%clk 0:02:25]} 8. Ba2 {[%clk 0:03:02]}  O-O {[%clk 0:02:26]} 9. Be3 {[%clk 0:03:00]}  Nbd7 {[%clk 0:02:26]} 10. g4 {[%clk 0:02:54]}  Ne5 {[%clk 0:02:23]} 11. f3 {[%clk 0:02:52]}  Bd7 {[%clk 0:02:22]} 12. Qd2 {[%clk 0:02:52]}  Nc6 {[%clk 0:02:21]} 13. O-O-O {[%clk 0:02:50]}  Nxd4 {[%clk 0:02:21]} 14. Bxd4 {[%clk 0:02:51]}  e5 {[%clk 0:02:16]} 15. Be3 {[%clk 0:02:51]}  Be6 {[%clk 0:02:16]} 16. g5 {[%clk 0:02:45]}  Nh5 {[%clk 0:02:13]} 17. Nd5 {[%clk 0:02:41]}  Bxd5 {[%clk 0:02:11]} 18. Bxd5 {[%clk 0:02:41]}  Qc7 {[%clk 0:02:05]} 19. Kb1 {[%clk 0:02:36]}  Rac8 {[%clk 0:02:04]} 20. Rhg1 {[%clk 0:02:22]}  g6 {[%clk 0:02:03]} 21. Rg2 {[%clk 0:02:19]}  b5 {[%clk 0:02:00]} 22. c3 {[%clk 0:01:51]}  Kh8 {[%clk 0:01:55]} 23. f4 {[%clk 0:01:37]}  exf4 {[%clk 0:01:53]} 24. Bxf4 {[%clk 0:01:37]}  f6 {[%clk 0:01:51]} 25. gxf6 {[%clk 0:01:32]}  Bxf6 {[%clk 0:01:48]} 26. Be3 {[%clk 0:01:26]}  Be5 {[%clk 0:01:46]} 27. Bg5 {[%clk 0:01:23]}  Nf4 {[%clk 0:01:43]} 28. Bxf4 {[%clk 0:01:23]}  Rxf4 {[%clk 0:01:42]} 29. Rh1 {[%clk 0:01:03]}  Rcf8 {[%clk 0:01:42]} 30. h4 {[%clk 0:01:03]}  Rf1+ {[%clk 0:01:35]} 31. Rxf1 {[%clk 0:01:03]}  Rxf1+ {[%clk 0:01:35]} 32. Ka2 {[%clk 0:01:04]}  Kg7 {[%clk 0:01:30]} 33. h5 {[%clk 0:01:01]}  Qe7 {[%clk 0:01:24]} 34. h6+ {[%clk 0:00:33]}  Kf8 {[%clk 0:01:16]} 35. Rf2+ {[%clk 0:00:33]}  Rxf2 {[%clk 0:01:15]} 36. Qxf2+ {[%clk 0:00:34]}  Qf6 {[%clk 0:01:14]} 37. Qa7 {[%clk 0:00:34]}  Qe7 {[%clk 0:01:02]} 38. Qxa6 {[%clk 0:00:23]}  Bf4 {[%clk 0:00:55]} 39. Qxb5 {[%clk 0:00:12]}  Bxh6 {[%clk 0:00:54]} 40. a4 {[%clk 0:00:12]}  Be3 {[%clk 0:00:49]} 41. a5 {[%clk 0:00:12]}  g5 {[%clk 0:00:48]} 42. Qb8+ {[%clk 0:00:10]}  Kg7 {[%clk 0:00:46]} 43. Qg8+ {[%clk 0:00:10]}  Kh6 {[%clk 0:00:46]} 44. b4 {[%clk 0:00:08]}  Qg7 {[%clk 0:00:41]} 45. Qxg7+ {[%clk 0:00:06]}  Kxg7 {[%clk 0:00:41]} 46. Kb3 {[%clk 0:00:06]}  Kf6 {[%clk 0:00:39]} 47. b5 {[%clk 0:00:04]}  Ke5 {[%clk 0:00:39]} 48. b6 {[%clk 0:00:05]}  g4 {[%clk 0:00:39]} 49. Kc4 {[%clk 0:00:05]}  g3 {[%clk 0:00:38]} 50. Kb5 {[%clk 0:00:06]}  g2 {[%clk 0:00:37]} 51. a6 {[%clk 0:00:06]}  Bxb6 {[%clk 0:00:35]} 52. Kxb6 {[%clk 0:00:06]}  g1=Q+ {[%clk 0:00:34]} 53. Kb7 {[%clk 0:00:07]}  Qb1+ {[%clk 0:00:31]} 54. Kc7 {[%clk 0:00:06]}  Qa1 {[%clk 0:00:30]} 55. Bb7 {[%clk 0:00:07]}  Qxc3+ {[%clk 0:00:29]} 56. Kb8 {[%clk 0:00:08]}  Qc5 {[%clk 0:00:25]} 57. a7 {[%clk 0:00:07]}  Qxa7+ {[%clk 0:00:25]} 58. Kxa7 {[%clk 0:00:08]}  h5 {[%clk 0:00:24]} 59. Kb6 {[%clk 0:00:09]}  h4 {[%clk 0:00:25]} 60. Bc8 {[%clk 0:00:09]}  Kxe4 {[%clk 0:00:24]} 61. Kb5 {[%clk 0:00:09]}  d5 {[%clk 0:00:25]} 62. Kb4 {[%clk 0:00:08]}  Ke3 {[%clk 0:00:24]} 63. Kc5 {[%clk 0:00:07]}  d4 {[%clk 0:00:24]} 64. Kc4 {[%clk 0:00:07]}  d3 {[%clk 0:00:24]} 65. Bg4 {[%clk 0:00:08]}  d2 {[%clk 0:00:21]} 66. Kc3 {[%clk 0:00:05]}  h3 {[%clk 0:00:21]} 0-1

[Event "December 5 Early 2023"]
[Site "https://www.chess.com"]
[Date "2023.12.05"]
[Round "2"]
[White "Krzywda, Andrzej"]
[Black "Sami, Sama"]
[Result "1/2-1/2"]
[Board "199"]
[TimeControl "180+1"]
[WhiteFideId "1114565"]
[BlackFideId "4802926"]
[WhiteElo "2492"]
[BlackElo "2251"]
[WhiteTeam "POL"]
[BlackTeam "IRQ"]
[WhiteClock "0:00:55"]
[BlackClock "0:01:18"]

1. e4 {[%clk 0:03:00]}  e5 {[%clk 0:02:59]} 2. Nf3 {[%clk 0:03:01]}  Nc6 {[%clk 0:02:59]} 3. Bb5 {[%clk 0:03:01]}  a6 {[%clk 0:03:00]} 4. Ba4 {[%clk 0:03:02]}  Nf6 {[%clk 0:02:59]} 5. O-O {[%clk 0:03:02]}  b5 {[%clk 0:02:59]} 6. Bb3 {[%clk 0:03:02]}  Bc5 {[%clk 0:03:00]} 7. a4 {[%clk 0:03:02]}  Rb8 {[%clk 0:03:00]} 8. c3 {[%clk 0:03:02]}  d6 {[%clk 0:02:59]} 9. d4 {[%clk 0:03:02]}  Bb6 {[%clk 0:02:57]} 10. a5 {[%clk 0:03:02]}  Ba7 {[%clk 0:02:57]} 11. h3 {[%clk 0:03:02]}  Bb7 {[%clk 0:02:57]} 12. dxe5 {[%clk 0:02:19]}  Nxe5 {[%clk 0:02:57]} 13. Nxe5 {[%clk 0:02:12]}  dxe5 {[%clk 0:02:57]} 14. Qxd8+ {[%clk 0:01:53]}  Kxd8 {[%clk 0:02:58]} 15. Bg5 {[%clk 0:01:54]}  Ke7 {[%clk 0:02:50]} 16. Nd2 {[%clk 0:01:48]}  h6 {[%clk 0:02:49]} 17. Bxf6+ {[%clk 0:01:47]}  Kxf6 {[%clk 0:02:49]} 18. Rfe1 {[%clk 0:01:40]}  Rhd8 {[%clk 0:02:49]} 19. Nf1 {[%clk 0:01:40]}  Rd6 {[%clk 0:02:32]} 20. Re2 {[%clk 0:01:36]}  c5 {[%clk 0:02:22]} 21. Ne3 {[%clk 0:01:24]}  c4 {[%clk 0:02:22]} 22. Ng4+ {[%clk 0:01:23]}  Ke6 {[%clk 0:02:19]} 23. Bc2 {[%clk 0:01:23]}  Rbd8 {[%clk 0:02:17]} 24. Kf1 {[%clk 0:01:19]}  Rd2 {[%clk 0:02:13]} 25. Ke1 {[%clk 0:01:14]}  Rxe2+ {[%clk 0:02:04]} 26. Kxe2 {[%clk 0:01:14]}  h5 {[%clk 0:02:01]} 27. Nh2 {[%clk 0:01:14]}  f6 {[%clk 0:01:55]} 28. Nf1 {[%clk 0:01:12]}  g5 {[%clk 0:01:50]} 29. g3 {[%clk 0:01:10]}  Rh8 {[%clk 0:01:40]} 30. b3 {[%clk 0:01:08]}  Rc8 {[%clk 0:01:33]} 31. b4 {[%clk 0:01:07]}  Rh8 {[%clk 0:01:32]} 32. Rd1 {[%clk 0:01:07]}  Bc6 {[%clk 0:01:33]} 33. Rd2 {[%clk 0:01:03]}  h4 {[%clk 0:01:32]} 34. g4 {[%clk 0:01:02]}  Ke7 {[%clk 0:01:22]} 35. Ne3 {[%clk 0:00:56]}  Bxe3 {[%clk 0:01:22]} 36. Kxe3 {[%clk 0:00:57]}  Rd8 {[%clk 0:01:22]} 37. Rxd8 {[%clk 0:00:56]}  Kxd8 {[%clk 0:01:18]} 38. f3 {[%clk 0:00:55]} 1/2-1/2